fUSD/lending_fUSD_20241106
["ID","MTS","AMOUNT","RATE_DAILY","PERIOD"]
[341449440,1730893839027,-500.0,0.00036599,7]
[341449441,1730893839036,-284.21433947,0.00036599,7]
[341449443,1730893839045,-500.00013565,0.00036599,7]
[341449445,1730893839057,-510.30775292,0.00036599,7]
[341449447,1730893839070,-518.03,0.00036599,7]
[341449449,1730893839079,-500.0,0.00036599,7]
[341449451,1730893839088,-500.0,0.00036599,7]
[341449453,1730893839098,-502.12206415,0.00036599,7]
[341449455,1730893839107,-500.0,0.00036599,7]
[341449457,1730893839116,-569.61677587,0.00036599,7]
[341449460,1730893839129,-1649.61,0.00036599,7]
[341449462,1730893839139,-515.81268623,0.00036599,7]
[341449464,1730893839149,-1249.68,0.00036599,7]
[341449466,1730893839159,-500.0,0.00036599,7]
[341449468,1730893839169,-500.0,0.00036599,7]
[341449470,1730893839178,-1931.11,0.00036599,7]
[341449472,1730893839187,-507.80906575,0.00036599,7]
[341449474,1730893839196,-502.47588442,0.00036599,7]
[341449475,1730893839205,-503.26159773,0.00036599,7]
[341449476,1730893839214,-500.0,0.00036599,7]
[341449478,1730893839223,-715.93,0.00036599,7]
[341449480,1730893839233,-525.8999596,0.00036599,7]
[341449482,1730893839242,-843.0,0.00036599,7]
[341449484,1730893839253,-766.16,0.00036599,7]
[341449486,1730893839263,-500.0,0.00036599,7]
[341449488,1730893839272,-1666.62,0.00036599,7]
[341449489,1730893839283,-1331.55,0.00036599,7]
[341449490,1730893839293,-500.0,0.00036599,7]
[341449492,1730893839303,-545.9,0.00036599,7]
[341449494,1730893839312,-1771.28,0.00036599,7]
[341449495,1730893839323,-796.02,0.00036599,7]
[341449496,1730893839334,-1906.91,0.00036599,7]
[341449497,1730893839343,-507.04597946,0.00036599,7]
[341449498,1730893839355,-667.79,0.00036599,7]
[341449499,1730893839365,-500.0,0.00036599,7]
[341449500,1730893839374,-307.76055879,0.00036599,7]
[341449501,1730893839386,-405.22944121,0.00036599,7]
[341449502,1730893839395,-1759.23,0.00036599,7]
[341449503,1730893839404,-500.0,0.00036599,7]
[341449504,1730893839414,-851.9,0.00036599,7]
[341449507,1730893839423,-1039.57,0.00036599,7]
[341449511,1730893839432,-500.0,0.00036599,7]
[341449514,1730893839442,-295.22285537,0.00036599,7]
[341449518,1730893839454,-500.0,0.00036599,7]
[341449521,1730893839464,-500.0,0.00036599,7]
[341449523,1730893839478,-500.0,0.00036599,7]
[341449525,1730893839487,-500.0,0.00036599,7]
[341449527,1730893839499,-500.0,0.00036599,7]
[341449529,1730893839509,-500.0,0.00036599,7]
[341449532,1730893839520,-4.30945442,0.00036599,7]
[341449534,1730893839531,-495.69054558,0.00036599,7]
[341449536,1730893839540,-500.0,0.00036599,7]
[341449538,1730893839549,-521.91,0.00036599,7]
[341449539,1730893839558,-339.87016729,0.00036599,7]
[341449541,1730893839567,-500.0,0.00036599,7]
[341449543,1730893839576,-1492.52,0.00036599,7]
[341449545,1730893839585,-500.0,0.00036599,7]
[341449547,1730893839594,-205.21446304,0.00036599,7]
[341449549,1730893839603,-911.3,0.00036599,7]
[341449551,1730893839612,-854.13,0.00036599,7]
[341449553,1730893839623,-359.4683432,0.00036599,7]
[341449555,1730893839632,-351.59,0.00036599,7]
[341449557,1730893839642,-886.35,0.00036599,7]
[341449559,1730893839651,-500.0,0.00036599,7]
[341449561,1730893839660,-500.0,0.00036599,7]
[341449563,1730893839669,-500.0,0.00036599,7]
[341449565,1730893839678,-510.74198004,0.00036599,7]
[341449567,1730893839687,-733.65,0.00036599,7]
[341449569,1730893839696,-500.0,0.00036599,7]
[341449571,1730893839705,-500.0,0.00036599,7]
[341449573,1730893839714,-500.0,0.00036599,7]
[341449575,1730893839724,-500.0,0.00036599,7]
[341449577,1730893839733,-1991.48,0.00036599,7]
[341449579,1730893839742,-500.0,0.00036599,7]
[341449581,1730893839751,-500.0,0.00036599,7]
[341449583,1730893839761,-434.20907766,0.00036599,7]
[341449585,1730893839774,-2372.87,0.00036599,7]
[341449587,1730893839783,-795.34,0.00036599,7]
[341449589,1730893839792,-500.0,0.00036599,7]
[341449591,1730893839801,-500.0,0.00036599,7]
[341449593,1730893839810,-500.0,0.00036599,7]
[341449594,1730893839819,-3375.73,0.00036599,7]
[341449596,1730893839828,-4066.47,0.00036599,7]
[341449598,1730893839837,-483.69660932,0.00036599,7]
[341449600,1730893839846,-513.57,0.00036599,7]
[341449602,1730893839855,-500.0,0.00036599,7]
[341449604,1730893839864,-582.45,0.00036599,7]
[341449606,1730893839874,-657.67,0.00036599,7]
[341449608,1730893839884,-508.66861238,0.00036599,7]
[341449610,1730893839893,-1708.67,0.00036599,7]
[341449612,1730893839901,-500.0,0.00036599,7]
[341449614,1730893839910,-500.0,0.00036599,7]
[341449616,1730893839922,-500.0,0.00036599,7]
[341449618,1730893839932,-500.0,0.00036599,7]
[341449620,1730893839941,-500.0,0.00036599,7]
[341449622,1730893839950,-500.0,0.00036599,7]
[341449623,1730893839959,-586.75,0.00036599,7]
[341449625,1730893839968,-500.0,0.00036599,7]
[341449627,1730893839978,-376.02362949,0.00036599,7]
[341449634,1730893840033,-123.97637051,0.00036599,7]
[341449636,1730893840043,-141.27088754,0.00036599,7]
[341449646,1730893840504,-1266.05911246,0.00036599,7]
[341449647,1730893840514,-523.55787284,0.00036599,7]
[341449648,1730893840523,-692.13360436,0.00036599,7]
[341449649,1730893840534,-4535.70639564,0.00036599,7]
[341449650,1730893840547,-500.0,0.00036599,7]
[341449651,1730893840558,-1000.0,0.00036599,7]
[341449652,1730893840567,-1543.44,0.00036599,7]
[341449653,1730893840577,-1073.3,0.00036599,7]
[341449654,1730893840586,-647.16,0.00036599,7]
[341449655,1730893840595,-3178.26,0.00036599,7]
[341449656,1730893840605,-817.47,0.00036599,7]
[341449657,1730893840615,-500.0,0.00036599,7]
[341449658,1730893840625,-1350.78,0.00036599,7]
[341449659,1730893840634,-500.0,0.00036599,7]
[341449660,1730893840645,-500.0,0.00036599,7]
[341449661,1730893840656,-480.62796972,0.00036599,7]
[341449662,1730893840668,-2682.49203028,0.00036599,7]
[341449663,1730893840677,-500.0,0.00036599,7]
[341449664,1730893840686,-505.90309308,0.00036599,7]
[341449665,1730893840696,-500.0,0.00036599,7]
[341449666,1730893840710,-500.0,0.00036599,7]
[341449667,1730893840724,-500.0,0.00036599,7]
[341449668,1730893840734,-488.67837564,0.00036599,7]
[341449669,1730893840743,-1183.9,0.00036599,7]
[341449670,1730893840752,-500.0,0.00036599,7]
[341449671,1730893840762,-876.22,0.00036599,7]
[341449672,1730893840772,-500.0,0.00036599,7]
[341449673,1730893840782,-504.3005468,0.00036599,7]
[341449674,1730893840791,-500.0,0.00036599,7]
[341449675,1730893840802,-500.0,0.00036599,7]
[341449676,1730893840811,-1471.03,0.00036599,7]
[341449677,1730893840820,-923.19,0.00036599,7]
[341449678,1730893840829,-500.0,0.00036599,7]
[341449679,1730893840839,-500.0,0.00036599,7]
[341449680,1730893840848,-943.93,0.00036599,7]
[341449681,1730893840857,-1174.57,0.00036599,7]
[341449682,1730893840867,-577.75,0.00036599,7]
[341449683,1730893840876,-33161.42631966,0.000366,2]
[341449684,1730893840888,-6767.43532497,0.000366,2]
[341449685,1730893840899,-23125.1775039,0.000366,2]
[341449686,1730893840926,-264.18999999,0.000366,2]
[341449687,1730893840944,-1940.79,0.000366,2]
[341449688,1730893840955,-1359.23949991,0.000366,2]
[341449689,1730893840967,-11150.88975001,0.000366,2]
[341449692,1730893842547,-355.21273935,0.00036374,15]
[341449694,1730893842558,-445.94733747,0.00036498,2]
[341449695,1730893842569,-408.48062954,0.00036498,2]
[341449696,1730893842578,-335.82937046,0.000366,2]
[341449697,1730893842628,-22609.52881149,0.000366,2]
[341449698,1730893842639,-1628.28578794,0.000366,2]
[341449699,1730893842681,-3184.40003167,0.000366,2]
[341449700,1730893842690,-893.0932188,0.000366,2]
[341449701,1730893842703,-500.0,0.000366,2]
[341449702,1730893842747,-1605.57003,0.000366,2]
[341449703,1730893842759,-1379.41383943,0.000366,2]
[341449704,1730893842772,-279.92356222,0.000366,2]
[341449705,1730893842784,-11095.63644955,0.000366,2]
[341449706,1730893842795,-7715.04542485,0.0003663,15]
[341449707,1730893842806,-668.56229,0.0003663,2]
[341449708,1730893842820,-173.6513123,0.0003663,2]
[341449709,1730893842830,-632.85,0.00036649,7]
[341449710,1730893842839,-6848.35,0.00036649,7]
[341449711,1730893842849,-500.0,0.00036649,7]
[341449712,1730893842859,-2007.17,0.00036649,7]
[341449713,1730893842868,-2176.35,0.00036649,7]
[341449714,1730893842878,-554.69,0.00036649,7]
[341449715,1730893842888,-2628.7,0.00036649,7]
[341449716,1730893842898,-2716.68,0.00036649,7]
[341449717,1730893842907,-695.35,0.00036649,7]
[341449718,1730893842917,-2025.76,0.00036649,7]
[341449719,1730893842927,-4176.1,0.00036649,7]
[341449720,1730893842937,-647.85,0.00036649,7]
[341449721,1730893842946,-2770.46,0.00036649,7]
[341449723,1730893842955,-1147.28,0.00036649,7]
[341449725,1730893842965,-1595.6,0.00036649,7]
[341449727,1730893842974,-244.06704203,0.00036649,7]
[341449729,1730893842984,-1461.46,0.00036649,7]
[341449731,1730893842994,-14791.07,0.00036649,7]
[341449733,1730893843003,-521.82,0.00036649,7]
[341449734,1730893843013,-500.0,0.00036649,7]
[341449735,1730893843022,-500.0,0.00036649,7]
[341449736,1730893843032,-500.0,0.00036649,7]
[341449737,1730893843042,-563.6,0.00036649,7]
[341449738,1730893843053,-528.99,0.00036649,7]
[341449739,1730893843062,-500.0,0.00036649,7]
[341449740,1730893843071,-500.0,0.00036649,7]
[341449741,1730893843081,-600.1,0.00036649,7]
[341449742,1730893843090,-500.0,0.00036649,7]
[341449743,1730893843099,-614.71,0.00036649,7]
[341449744,1730893843109,-8325.44,0.00036649,7]
[341449745,1730893843118,-500.0,0.00036649,7]
[341449746,1730893843128,-500.0,0.00036649,7]
[341449748,1730893843138,-19696.6895,0.00036696,2]
[341449750,1730893843148,-1000.0,0.00036696,2]
[341449752,1730893843159,-409.798,0.00036696,2]
[341449754,1730893843169,-8392.1419049,0.00036696,2]
[341449756,1730893843178,-220.0,0.00036698,2]
[341449758,1730893843188,-1009.6108,0.00036698,2]
[341449760,1730893843198,-1843.1108,0.00036698,2]
[341449762,1730893843207,-385.5201,0.00036698,2]
[341449764,1730893843217,-13533.3966,0.00036698,2]
[341449766,1730893843226,-500.0,0.00036773,5]
[341449768,1730893843236,-199.01916,0.00036773,5]
[341449770,1730893843246,-500.0,0.00036773,2]
[341449772,1730893843256,-961.27,0.00036794,7]
[341449774,1730893843266,-1884.35,0.00036794,7]
[341449776,1730893843275,-500.0,0.00036794,7]
[341449779,1730893843288,-500.0,0.00036794,7]
[341449781,1730893843297,-984.58,0.00036794,7]
[341449783,1730893843308,-9887.7,0.00036794,7]
[341449784,1730893843317,-500.0,0.00036794,7]
[341449786,1730893843327,-2015.33,0.00036794,7]
[341449788,1730893843336,-500.0,0.00036794,7]
[341449789,1730893843345,-3572.89,0.00036794,7]
[341449790,1730893843356,-500.0,0.00036794,7]
[341449791,1730893843365,-500.0,0.00036794,7]
[341449792,1730893843376,-500.0,0.00036794,7]
[341449793,1730893843385,-817.47,0.00036794,7]
[341449794,1730893843395,-897.42,0.00036794,7]
[341449795,1730893843405,-514.41,0.00036794,7]
[341449796,1730893843415,-746.87,0.00036794,7]
[341449797,1730893843425,-910.15,0.00036794,7]
[341449798,1730893843435,-722.56,0.00036794,7]
[341449799,1730893843445,-500.0,0.00036795,7]
[341449800,1730893843454,-500.0,0.00036795,7]
[341449801,1730893843464,-500.0,0.00036795,7]
[341449802,1730893843473,-500.0,0.00036795,7]
[341449803,1730893843483,-500.0,0.00036795,7]
[341449804,1730893843492,-500.0,0.00036795,7]
[341449805,1730893843502,-166.69273638,0.00036795,7]
[341449806,1730893843511,-500.0,0.00036795,7]
[341449807,1730893843521,-500.0,0.00036795,7]
[341449808,1730893843530,-500.0,0.00036795,7]
[341449809,1730893843539,-500.0,0.00036795,7]
[341449810,1730893843549,-500.0,0.00036795,7]
[341449811,1730893843560,-500.0,0.00036795,7]
[341449812,1730893843569,-500.0,0.00036795,7]
[341449813,1730893843579,-500.0,0.00036795,7]
[341449814,1730893843588,-500.0,0.00036795,7]
[341449815,1730893843597,-500.0,0.00036795,7]
[341449816,1730893843607,-500.0,0.00036795,7]
[341449817,1730893843617,-500.0,0.00036795,7]
[341449818,1730893843627,-500.0,0.00036795,7]
[341449819,1730893843636,-506.07715572,0.00036795,7]
[341449820,1730893843646,-500.0,0.00036795,7]
[341449821,1730893843655,-500.0,0.00036795,7]
[341449822,1730893843665,-500.0,0.00036795,7]
[341449823,1730893843674,-500.0,0.00036795,7]
[341449824,1730893843684,-500.0,0.00036795,7]
[341449825,1730893843693,-422.8593306,0.00036795,7]
[341449826,1730893843703,-500.0,0.00036795,7]
[341449827,1730893843712,-500.0,0.00036795,7]
[341449828,1730893843722,-614.94211799,0.00036795,7]
[341449829,1730893843732,-487.44538635,0.00036795,7]
[341449830,1730893843742,-500.0,0.00036795,7]
[341449831,1730893843751,-500.0,0.00036795,7]
[341449832,1730893843761,-500.0,0.00036795,7]
[341449833,1730893843771,-500.0,0.00036795,7]
[341449834,1730893843781,-500.0,0.00036795,7]
[341449835,1730893843793,-500.0,0.00036795,7]
[341449836,1730893843806,-1183.78,0.00036795,7]
[341449837,1730893843816,-500.0,0.00036795,7]
[341449838,1730893843826,-500.0,0.00036795,7]
[341449839,1730893843836,-500.0,0.00036795,7]
[341449840,1730893843846,-577.65198796,0.00036795,7]
[341449841,1730893843857,-758.93,0.00036795,7]
[341449842,1730893843867,-470.66535986,0.00036795,7]
[341449843,1730893843878,-500.0,0.00036795,7]
[341449844,1730893843888,-173.79210884,0.00036795,7]
[341449845,1730893843898,-500.0,0.00036795,7]
[341449846,1730893843908,-500.0,0.00036795,7]
[341449847,1730893843918,-500.0,0.00036795,7]
[341449848,1730893843928,-500.0,0.00036795,7]
[341449849,1730893843938,-500.0,0.00036795,7]
[341449850,1730893843948,-514.10395789,0.00036795,7]
[341449851,1730893843959,-500.0,0.00036795,7]
[341449852,1730893843970,-500.0,0.00036795,7]
[341449853,1730893843980,-500.0,0.00036795,7]
[341449854,1730893843990,-500.0,0.00036795,7]
[341449855,1730893843999,-500.0,0.00036795,7]
[341449856,1730893844011,-634.99908257,0.00036795,7]
[341449857,1730893844021,-500.0,0.00036795,7]
[341449858,1730893844031,-524.50945757,0.00036795,7]
[341449859,1730893844040,-525.88763246,0.00036795,7]
[341449860,1730893844050,-500.0,0.00036795,7]
[341449861,1730893844061,-500.0,0.00036795,7]
[341449862,1730893844071,-500.0,0.00036795,7]
[341449863,1730893844080,-500.0,0.00036795,7]
[341449864,1730893844090,-500.0,0.00036795,7]
[341449865,1730893844101,-632.97,0.00036795,7]
[341449866,1730893844111,-541.65,0.00036795,7]
[341449867,1730893844122,-500.0,0.00036795,7]
[341449868,1730893844132,-500.0,0.00036795,7]
[341449869,1730893844142,-765.39,0.00036795,7]
[341449870,1730893844153,-920.0,0.00036795,7]
[341449871,1730893844163,-500.0,0.00036795,7]
[341449872,1730893844174,-500.0,0.00036795,7]
[341449873,1730893844186,-1217.48,0.00036795,7]
[341449874,1730893844196,-500.0,0.00036795,7]
[341449875,1730893844207,-500.0,0.00036795,7]
[341449876,1730893844217,-597.82153387,0.00036795,7]
[341449877,1730893844227,-500.0,0.00036795,7]
[341449878,1730893844237,-500.0,0.00036795,7]
[341449879,1730893844247,-738.58,0.00036795,7]
[341449880,1730893844258,-500.0,0.00036795,7]
[341449881,1730893844268,-500.0,0.00036795,7]
[341449882,1730893844278,-500.0,0.00036795,7]
[341449883,1730893844293,-564.82439741,0.00036795,7]
[341449884,1730893844303,-500.0,0.00036795,7]
[341449885,1730893844313,-500.0,0.00036795,7]
[341449886,1730893844324,-500.0,0.00036795,7]
[341449887,1730893844335,-500.0,0.00036795,7]
[341449888,1730893844344,-500.0,0.00036795,7]
[341449889,1730893844355,-500.0,0.00036795,7]
[341449890,1730893844366,-500.0,0.00036795,7]
[341449891,1730893844377,-500.0,0.00036795,7]
[341449892,1730893844388,-500.0,0.00036795,7]
[341449893,1730893844398,-500.0,0.00036795,7]
[341449894,1730893844409,-500.0,0.00036795,7]
[341449895,1730893844419,-566.55,0.00036795,7]
[341449896,1730893844430,-500.0,0.00036795,7]
[341449897,1730893844440,-500.0,0.00036795,7]
[341449898,1730893844450,-2849.52,0.00036795,7]
[341449899,1730893844461,-500.0,0.00036795,7]
[341449900,1730893844470,-1131.11,0.00036795,7]
[341449901,1730893844480,-500.0,0.00036795,7]
[341449902,1730893844490,-500.0,0.00036795,7]
[341449903,1730893844500,-500.0,0.00036795,7]
[341449904,1730893844511,-530.04648707,0.00036795,7]
[341449905,1730893844520,-500.0,0.00036795,7]
[341449906,1730893844532,-500.0,0.00036795,7]
[341449907,1730893844542,-500.0,0.00036795,7]
[341449908,1730893844553,-500.0,0.00036795,7]
[341449909,1730893844563,-500.0,0.00036795,7]
[341449910,1730893844574,-500.0,0.00036795,7]
[341449911,1730893844584,-500.0,0.00036795,7]
[341449912,1730893844594,-500.0,0.00036795,7]
[341449913,1730893844604,-288.74168682,0.00036795,7]
[341449914,1730893844620,-211.25831318,0.00036795,7]
[341449915,1730893844630,-500.0,0.00036795,7]
[341449916,1730893844640,-1339.98,0.00036795,7]
[341449917,1730893844651,-416.80953431,0.00036795,7]
[341449918,1730893844661,-500.0,0.00036795,7]
[341449919,1730893844671,-500.0,0.00036795,7]
[341449920,1730893844681,-500.0,0.00036795,7]
[341449921,1730893844691,-500.0,0.00036795,7]
[341449922,1730893844701,-500.0,0.00036795,7]
[341449923,1730893844712,-500.0,0.00036795,7]
[341449924,1730893844721,-500.0,0.00036795,7]
[341449925,1730893844732,-729.03215251,0.00036795,7]
[341449926,1730893844754,-553.85784749,0.00036795,7]
[341449927,1730893844764,-500.0,0.00036795,7]
[341449928,1730893844774,-1310.55,0.00036795,7]
[341449929,1730893844784,-500.0,0.00036795,7]
[341449930,1730893844794,-500.0,0.00036795,7]
[341449931,1730893844806,-1274.70308961,0.00036795,7]
[341449932,1730893844819,-606.26691039,0.00036795,7]
[341449933,1730893844829,-500.0,0.00036795,7]
[341449934,1730893844839,-500.0,0.00036795,7]
[341449935,1730893844849,-428.18308959,0.00036795,7]
[341449936,1730893845157,-71.81691041,0.00036795,7]
[341449937,1730893845167,-408.94610409,0.00036795,7]
[341449938,1730893845187,-91.05389591,0.00036795,7]
[341449939,1730893845197,-500.0,0.00036795,7]
[341449940,1730893845206,-2560.74,0.00036795,7]
[341449941,1730893845216,-526.48738019,0.00036795,7]
[341449942,1730893845226,-500.0,0.00036795,7]
[341449943,1730893845236,-500.0,0.00036795,7]
[341449944,1730893845246,-500.0,0.00036795,7]
[341449945,1730893845256,-1441.65,0.00036795,7]
[341449946,1730893845267,-500.0,0.00036795,7]
[341449947,1730893845276,-648.4855948,0.00036795,7]
[341449948,1730893845289,-500.0,0.00036795,7]
[341449949,1730893845299,-500.0,0.00036795,7]
[341449950,1730893845315,-1189.77,0.00036795,7]
[341449951,1730893845327,-1000.0,0.00036795,10]
[341449952,1730893845337,-175.0626091,0.00036795,7]
[341449956,1730893845537,150.0,0.00018123,2]
[341449959,1730893846187,-200.0,0.00035845,7]
[341449960,1730893846198,-597.49,0.00036375,7]
[341449961,1730893846208,-500.0,0.00036599,7]
[341449962,1730893846217,-597.49,0.00036649,7]
[341449963,1730893846228,-324.9373909,0.00036795,7]
[341449964,1730893846237,-500.0,0.00036795,7]
[341449965,1730893846247,-500.0,0.00036795,7]
[341449966,1730893846256,-500.0,0.00036795,7]
[341449967,1730893846266,-500.0,0.00036795,7]
[341449968,1730893846275,-500.0,0.00036795,7]
[341449970,1730893846288,-938.39,0.00036795,7]
[341449971,1730893846298,-500.0,0.00036795,7]
[341449972,1730893846311,-500.0,0.00036795,7]
[341449973,1730893846321,-500.0,0.00036795,7]
[341449974,1730893846332,-285.49551416,0.00036795,7]
[341449975,1730893846403,-214.50448584,0.00036795,7]
[341449976,1730893846412,-500.0,0.00036795,7]
[341449977,1730893846422,-500.0,0.00036795,7]
[341449978,1730893846432,-100.99551417,0.00036795,7]
[341449979,1730893846487,-399.00448583,0.00036795,7]
[341449980,1730893846498,-1240.59,0.00036795,7]
[341449981,1730893846508,-500.0,0.00036795,7]
[341449982,1730893846518,-500.0,0.00036795,7]
[341449983,1730893846530,-500.0,0.00036795,7]
[341449984,1730893846541,-219.19398093,0.00036795,7]
[341449985,1730893846550,-937.7,0.00036795,7]
[341449986,1730893846565,-500.0,0.00036795,7]
[341449987,1730893846574,-500.0,0.00036795,7]
[341449988,1730893846583,-950.29,0.00036795,7]
[341449989,1730893846592,-500.0,0.00036795,7]
[341449990,1730893846602,-877.73,0.00036795,7]
[341449991,1730893846611,-500.0,0.00036795,7]
[341449992,1730893846620,-500.0,0.00036795,7]
[341449993,1730893846629,-500.0,0.00036795,7]
[341449994,1730893846639,-1260.65,0.00036795,7]
[341449995,1730893846648,-500.0,0.00036795,7]
[341449996,1730893846658,-500.0,0.00036795,7]
[341449997,1730893846667,-500.0,0.00036795,7]
[341449998,1730893846677,-500.0,0.00036795,7]
[341449999,1730893846686,-750.28,0.00036795,7]
[341450000,1730893846696,-500.0,0.00036795,7]
[341450001,1730893846706,-1256.53293506,0.00036795,7]
[341450002,1730893921650,300.0,0.00019725,2]
[341450003,1730893922404,420.0,0.00021484,2]
[341450004,1730893923138,587.0,0.00023401,2]
[341450005,1730893952475,813.88,0.00033882,2]
[341450006,1730894257902,-151.0,0.0003,120]
[341450007,1730894410956,500.0,0.0001726,2]
[341450008,1730894411371,500.0,0.0001726,2]
[341450009,1730894412725,224.74411306,0.0001726,2]
[341450012,1730894516674,158.67,0.00015342,2]
[341450013,1730894734169,-250.0,0.00021,2]
[341450014,1730894734190,-300.0,0.00023,2]
[341450015,1730894734211,-500.0,0.00024932,2]
[341450016,1730894734230,-235.31814825,0.00024932,2]
[341450017,1730894745224,-258.37866457,0.000229,2]
[341450018,1730894745246,-264.68185175,0.00024932,2]
[341450019,1730894745269,-500.0,0.00024932,2]
[341450020,1730894745292,-6402.50447905,0.00024932,2]
[341450021,1730894831105,-176.0,0.00023,2]
[341450022,1730894831125,-350.0,0.00025,2]
[341450023,1730894831145,-400.0,0.00027,2]
[341450024,1730894831164,-1659.771306,0.00027,2]
[341450025,1730894833125,-1174.118694,0.00027,2]
[341450026,1730894833146,-154.46,0.00027103,2]
[341450027,1730894833166,-1788.3467623,0.00027103,2]
[341450028,1730894833186,-450.0,0.00029,2]
[341450029,1730894833206,-155.122,0.0003,2]
[341450030,1730894833225,-1007.88691342,0.00031,2]
[341450031,1730894840130,-387.29837928,0.00031,2]
[341450032,1730894840205,-602.8147073,0.00031,2]
[341450033,1730894840226,-500.0,0.00031,2]
[341450034,1730894840247,-960.1,0.00031184,2]
[341450035,1730894840270,-2748.08,0.00032564,2]
[341450036,1730894840291,-162.26949784,0.00032877,2]
[341450037,1730894840312,-550.0,0.00033,2]
[341450038,1730894840333,-167.98,0.00033059,2]
[341450039,1730894840355,-2748.08,0.00033087,2]
[341450040,1730894840377,-250.0,0.00033107,2]
[341450041,1730894840402,-155.122,0.00033151,2]
[341450042,1730894840424,-158.87,0.00033155,2]
[341450043,1730894840446,-443.03,0.00033286,2]
[341450044,1730894840470,-176.81,0.00033406,120]
[341450045,1730894840492,-200.0,0.00033442,2]
[341450046,1730894840513,-2171.03,0.00033442,2]
[341450047,1730894840534,-960.1,0.00033448,2]
[341450048,1730894840554,-250.0,0.00033485,120]
[341450049,1730894840579,-2748.08,0.0003361,2]
[341450050,1730894840601,-7.19165506,0.00033686,2]
[341450051,1730894952468,-4028.19408932,0.0003,2]
[341450052,1730894952489,-1798.0,0.00031,2]
[341450053,1730894957442,184.1279214,0.000153,2]
[341450054,1730894958217,-200.0,0.00033878,7]
[341450055,1730894958240,-13320.74687203,0.0003388,10]
[341450056,1730894964076,-3269.80729955,0.0003388,10]
[341450057,1730894964186,-9674.44582842,0.0003388,10]
[341450058,1730894964212,-1112.05,0.0003388,2]
[341450059,1730894964232,-202.48,0.00033933,120]
[341450060,1730894964251,-153.84,0.00033955,2]
[341450061,1730894964272,-172.49,0.00033955,2]
[341450062,1730894964290,-289.43,0.00034134,2]
[341450063,1730894964311,-2748.08,0.00034134,2]
[341450064,1730894964330,-200.0,0.000342,2]
[341450065,1730894964350,-203.504344,0.000344,2]
[341450066,1730894968328,864.09,0.00033122,2]
[341450068,1730895001435,300.0,0.00019725,2]
[341450069,1730895019425,150.0,0.00018123,2]
[341450070,1730895027642,914.41446,0.00034464,2]
[341450090,1730895031859,-160.0,0.00034638,120]
[341450091,1730895031868,-2748.08,0.00034657,2]
[341450092,1730895031878,-160.15,0.00034686,2]
[341450093,1730895031888,-167.98,0.00034712,2]
[341450094,1730895031897,-1000.0,0.00034729,2]
[341450095,1730895031907,-22161.42,0.00034733,2]
[341450096,1730895031916,-1655.59,0.00034776,120]
[341450097,1730895031925,-5649.6,0.00034776,2]
[341450098,1730895031934,-200.0,0.00034988,7]
[341450099,1730895031943,-287.74,0.00034996,120]
[341450100,1730895031952,-782.43,0.00034998,2]
[341450101,1730895031962,-150.36227383,0.00035,2]
[341450102,1730895031971,-600.0,0.00035,2]